Cogmind - Beta 16 @@@ ROGUE MODE // 2025.10.23 @ 18:11:03 Player: GermanMO Result: Destroyed by L-31 Rogue with Katana Performance ------------- Evolutions (1) 500 Regions Visited (2) 400 Robots Destroyed (16) 80 Value Destroyed (113) 113 Prototype IDs (0) 0 Alien Tech Used (0) 0 Bonus (0) 0 TOTAL SCORE: 1093 Bonus ------- None Cogmind --------- Core Integrity 0/400 Matter 119/300 Energy 100/100 System Corruption 0% Temperature Cool (0) Movement Core (100) Ox1 Location -9/Materials Parts ------- > --- POWER (1) -------- (None) > --- PROPULSION (2) --- (None) > --- UTILITY (4) ------ Improved Terrain Scanner Seismic Detector Improved Power Shielding > --- WEAPON (2) ------- (None) > --- INVENTORY (5) ---- Sensor Array Signal Interpreter Peak State ------------ > --- POWER ------------ Ion Engine > --- PROPULSION ------- Compact Wheel Compact Wheel > --- UTILITY ---------- Small Storage Unit Structural Scanner Improved Power Shielding > --- WEAPON ----------- Assault Rifle Light Cannon > --- INVENTORY -------- Light Ion Engine Compact Wheel Sensor Array Signal Interpreter Improved Terrain Scanner Seismic Detector Improved Power Shielding [Rating: 11] Favorites ----------- Power Ion Engine Engine Ion Engine Propulsion Compact Wheel Wheel Compact Wheel Utility Small Storage Unit Device Structural Scanner Storage Small Storage Unit Processor Signal Interpreter Protection Improved Power Shielding Weapon Assault Rifle Energy Gun EM Pulse Gun Ballistic Gun Assault Rifle Ballistic Cannon Light Cannon Special Weapon Mining Laser Build | -11 -10 -9 ------- Run | Yrd Mat Mat Slots Evolved 2 | . . 2 Power . | . . . Propulsion . | . . . Utility 2 | . . 2 Weapon . | . . . Parts Attached 18 | 7 5 6 Power 2 | 1 . 1 Engine 2 | 1 . 1 Core . | . . . Reactor . | . . . Propulsion 4 | 3 . 1 Treads . | . . . Leg . | . . . Wheel 4 | 3 . 1 Hover . | . . . Flight . | . . . Utility 8 | 1 3 4 Device 4 | . 2 2 Storage 1 | 1 . . Processor 1 | . 1 . Hackware . | . . . Protection 2 | . . 2 Artifact . | . . . Weapon 4 | 2 2 . Energy Gun 1 | 1 . . Energy Cannon . | . . . Ballistic Gun 1 | 1 . . Ballistic Cannon 1 | . 1 . Launcher . | . . . Special Weapon 1 | . 1 . Impact Weapon . | . . . Slashing Weapon . | . . . Piercing Weapon . | . . . Special Melee Weapon . | . . . Unidentified Prototypes . | . . . Parts Lost 8 | . 1 7 Power 2 | . . 2 Propulsion 1 | . . 1 Utility 3 | . . 3 Weapon 2 | . 1 1 Highest Loss Streak 7 | . 1 7 To Critical Strikes . | . . . Average Backups 4 | 2 6 6 Power . | . 1 . Propulsion . | . 1 . Utility 2 | 1 3 4 Weapon . | . . . Tool/Special . | . . . Unused Backups . | . . . Power . | . . . Propulsion . | . . . Utility . | . . . Weapon . | . . . Tool/Special . | . . . Average Slot Usage (%) 81 | . 98 58 Engine 11 | . 14 8 Wheel 20 | . 28 9 Device 11 | . 12 10 Storage 12 | . 14 9 Protection 5 | . . 12 Energy Gun 3 | . 5 . Ballistic Gun 10 | . 14 5 Ballistic Cannon 4 | . 5 3 Special Weapon 1 | . 3 . Peak Build Rating 11 | 6 7 11 Average Rating 6 | 5 6 8 On Entrance 4 | . 6 6 Avg Prop Armor Cover (%) . | . . . Naked Turns . | . . . Heaviest Build 18 | 14 16 18 Greatest Support 32 | 32 32 32 Greatest Overweight (x) 4 | . . 4 Average Overweight (x) . | . . 1 Largest Inventory Capacity 8 | 8 8 8 Average Capacity 7 | 7 8 7 Most Carried 8 | 4 8 8 Average Carried 4 | 2 6 6 Final Capacity 8 | 8 8 5 Final Carried 7 | 4 7 2 Class Distribution -------------------- 100% | Mutant Dominant Class ---------------- Mutant | -10/Materials Mutant | -9/Materials Resources | -11 -10 -9 ----------- Run | Yrd Mat Mat Matter Collected 424 | 348 76 . Remotely . | . . . Salvage Created 435 | 422 13 . Parts 39 | 37 2 . Haulers Intercepted . | . . . Recyclers Shooed . | . . . Parts Field Recycled . | . . . Retrieved Matter . | . . . Parts Self-Destructed . | . . . Prevented . | . . . Parts Restored . | . . . Kills | -11 -10 -9 ------- Run | Yrd Mat Mat Combat Hostiles Destroyed 2 | . 2 . Guns 2 | . 2 . Classes Destroyed 4 | 3 1 . Worker 4 | 4 . . Tunneler 9 | 9 . . Recycler 1 | 1 . . Swarmer 2 | . 2 . Best Kill Streak 4 | 4 2 . Combat Bots Only 2 | . 2 . Max Kills in Single Turn 1 | 1 1 . Gunslinging . | . . . Exploded . | . . . Melee . | . . . Uniques/NPCs Destroyed . | . . . Combat | -11 -10 -9 -------- Run | Yrd Mat Mat Hostile Shots Fired 77 | . 27 50 Missed 21 | . 8 13 Hits 56 | . 19 37 Melee 20 | . . 20 Projectile 36 | . 19 17 Critical Strikes 4 | . . 4 Damage Taken 1051 | 22 169 860 Core 420 | . 18 402 Absorbed by Shields . | . . . Redirected to Shielding 132 | . . 132 Core Remaining (%) 96 | 100 92 . Volleys Fired 49 | 26 14 9 Largest 2 | 2 2 1 Hottest 100 | 60 100 30 Shots Fired 88 | 52 27 9 Gun 65 | 52 13 . Cannon 22 | . 13 9 Launcher . | . . . Special 1 | . 1 . Kinetic 61 | 26 26 9 Thermal 1 | . 1 . Explosive . | . . . Electromagnetic 26 | 26 . . Robot Hit Streak 15 | 15 4 5 Robot Miss Streak 3 | 1 3 1 Penetration Max . | . . . Secondary Targets . | . . . Shots Hit Robots 56 | 37 14 5 Core Hits 20 | 15 3 2 Critical Kills . | . . . Critical Parts Destroyed . | . . . Critical Strikes . | . . . Melee Attacks . | . . . Impact . | . . . Slashing . | . . . Piercing . | . . . Sneak Attacks . | . . . Combat Hostiles . | . . . Follow-up Attacks . | . . . Damage Inflicted 797 | 503 206 88 Guns 559 | 462 97 . Cannons 197 | . 109 88 Explosions 41 | 41 . . Melee . | . . . Ramming . | . . . Kinetic 427 | 133 206 88 Thermal 41 | 41 . . Explosive . | . . . Electromagnetic 329 | 329 . . Impact . | . . . Slashing . | . . . Piercing . | . . . Highest Corruption . | . . . Average Corruption . | . . . Corruption Purged . | . . . Corruption Blocked . | . . . Overload Shots . | . . . Overflow Damage . | . . . Projectiles . | . . . Explosions . | . . . Melee . | . . . Knockbacks 7 | . 3 4 Impact . | . . . Kinetic 6 | . 3 3 Secondary 1 | . . 1 Self-Inflicted Damage 22 | 22 . . Shots 1 | 1 . . Rammed . | . . . Targets Rammed . | . . . Kicked . | . . . Crushed . | . . . Highest Temperature 20 | 12 20 14 Average Temperature 11 | 12 12 7 Received Heat Transfer 132 | . 30 102 Siege Activations . | . . . Martial Activations . | . . . Shielding Activations . | . . . Robots Disrupted . | . . . Combat Hostiles . | . . . Robots Corrupted . | . . . Combat Hostiles . | . . . Parts Fried 2 | 2 . . Impact Corruptions . | . . . Robots Melted . | . . . Combat Hostiles . | . . . Parts Melted . | . . . Heat Transferred . | . . . Parts Sabotaged . | . . . Parts Stolen . | . . . Parts Stripped . | . . . Power Chain Reactions 1 | 1 . . Alert | -11 -10 -9 ------- Run | Yrd Mat Mat Maximum Alert Level . | . . . Low Security (%) 100 | 100 100 100 Level 1 . | . . . Level 2 . | . . . Level 3 . | . . . Level 4 . | . . . Level 5 . | . . . High Security . | . . . Max Security . | . . . Peak Influence 45 | 10 45 15 Initial . | . . . Average 4 | 1 11 1 Influence Increases 165 | 70 75 20 Destroy 0b10 Robot/C 40 | . 40 . Destroy 0b10 Robot/NC 70 | 70 . . Successful Hack 10 | . 5 5 Disable Machine 30 | . 30 . Lose Combat Pursuer 15 | . . 15 Influence Decreases 165 | 70 75 20 Time Decay 165 | 70 75 20 Squads Dispatched 2 | . 2 . Investigation 1 | . 1 . Extermination . | . . . Reinforcement 1 | . 1 . Assault . | . . . Garrison . | . . . Intercept . | . . . Searches Triggered . | . . . Construction Impeded . | . . . Haulers Reinforced . | . . . Active Scanning Responses . | . . . Cargo Convoy Interrupts . | . . . Stealth | -11 -10 -9 --------- Run | Yrd Mat Mat Distress Signals 3 | . 1 2 Communications Jammed . | . . . Distress Signals . | . . . Times Spotted 17 | . 10 7 Peak Tracking Total 6 | . 4 6 Tactical Retreats 1 | . . 1 Traps | -11 -10 -9 ------- Run | Yrd Mat Mat Traps Triggered 4 | . 1 3 Indirectly . | . . . Trap Hack Attempts . | . . . Triggered . | . . . Disarmed . | . . . Reprogrammed . | . . . Reused . | . . . Traps Extracted . | . . . Installed . | . . . Triggered . | . . . Machines | -11 -10 -9 ---------- Run | Yrd Mat Mat Machines Disabled 2 | . 2 . Max in Single Turn 1 | . 1 . Machines Repaired . | . . . Machines Dismantled . | . . . Machines Sabotaged . | . . . Overloaded Fab Kills . | . . . Hacking | -11 -10 -9 --------- Run | Yrd Mat Mat Machines Accessed 4 | . 2 2 Terminals 4 | . 2 2 Fabricators . | . . . Repair Stations . | . . . Recycling Units . | . . . Scanalyzers . | . . . Garrison Access . | . . . Total Hacks 7 | . 4 3 Successful 4 | . 2 2 Failed 3 | . 2 1 Catastrophic . | . . . Database Lockouts . | . . . Manual 7 | . 4 3 Terminals 7 | . 4 3 Fabricators . | . . . Repair Stations . | . . . Recycling Units . | . . . Scanalyzers . | . . . Garrison Access . | . . . Terminal Hacks . | . . . Fabricator Hacks . | . . . Repair Station Hacks . | . . . Recycling Unit Hacks . | . . . Scanalyzer . | . . . Garrison Access Hacks . | . . . Unauthorized Hacks 4 | . 2 2 Terminals 4 | . 2 2 Botnet 4 | . 2 2 Fabricators . | . . . Repair Stations . | . . . Recycling Units . | . . . Scanalyzers . | . . . Garrison Access . | . . . Data Cores Recovered . | . . . Used . | . . . Hacking Detections 2 | . 1 1 Full Trace Events . | . . . Feedback Events . | . . . Feedback Blocked . | . . . Robot Schematics Acquired . | . . . Robots Built . | . . . Authchips . | . . . Time . | . . . Total Robot Build Rating . | . . . Part Schematics Acquired . | . . . Parts Built . | . . . Authchips . | . . . Time . | . . . Total Part Build Rating . | . . . Part Studies Acquired . | . . . Parts Repaired . | . . . Time . | . . . Parts Recycled . | . . . Recycled Matter . | . . . Retrieved Matter . | . . . Retrieved Components . | . . . Parts Scanalyzed . | . . . Part Schematics Acquired . | . . . Parts Damaged . | . . . Bothacking | -11 -10 -9 ------------ Run | Yrd Mat Mat Used RIF Installer . | . . . Robots Hacked . | . . . Non-combat . | . . . Combat . | . . . Robot Hacks Applied . | . . . Relay Couplers Released . | . . . Fabnet Peak Effective % . | . . . Robots Rewired . | . . . Allies Hacked . | . . . Hacks Repelled . | . . . Allies | -11 -10 -9 -------- Run | Yrd Mat Mat Total Allies . | . . . Largest Group . | . . . Highest-Rated Group . | . . . Highest-Rated Ally . | . . . Total Orders . | . . . Ally Attacks . | . . . Total Damage . | . . . Kills . | . . . Allies Corrupted . | . . . Allies Melted . | . . . Intel | -11 -10 -9 ------- Run | Yrd Mat Mat Active Infowar (turns) 401 | . 247 154 Sensors 6 | . 6 . Terrain 27 | . . 27 Structural 367 | . 241 126 Seismic 28 | . . 28 Robot Analysis Total . | . . . Derelict Logs Recovered . | . . . Drone Launches . | . . . Drone Recoveries . | . . . Exploration | -11 -10 -9 ------------- Run | Yrd Mat Mat Turns Passed 831 | 362 273 196 Spaces Moved 482 | 175 208 99 Core 50 | 12 . 38 Treads . | . . . Legs . | . . . Wheels 432 | 163 208 61 Hover . | . . . Flight . | . . . Fastest Speed 50 | 50 100 100 Average Speed 107 | 96 100 141 Slowest Speed 250 | 100 100 250 Overloaded Moves . | . . . Propulsion Burnouts . | . . . Robots Hopped . | . . . Potential Cave-ins . | . . . Cave-ins Triggered . | . . . Exploration Rate (%) 20 | 7 40 15 Regions Visited 2 Branch Regions . Pre-discovered Areas . | . . . Known Exits Taken 1 | . 1 . Unknown Exits Taken 1 | 1 . . Scrap Searched . | . . . Spaces Dug . | . . . Terrain Destroyed 2 | 2 . . Melee . | . . . Projectile . | . . . AOE 2 | 2 . . Terrain Rammed . | . . . Walls Destroyed . | . . . Machines Disabled . | . . . Actions | -11 -10 -9 --------- Run | Yrd Mat Mat Total 708 | 317 246 145 Wait 129 | 98 8 23 Move 480 | 174 207 99 Hop . | . . . Pick Up 20 | 11 6 3 Fast Attach 3 | . . 3 Attach 21 | 7 6 8 Detach 3 | . 3 . Swap . | . . . Drop 3 | 1 2 . Fire 49 | 26 14 9 Melee . | . . . Ram . | . . . Kick . | . . . Crush . | . . . Escape Stasis . | . . . Rewire . | . . . Trap . | . . . Miscellaneous . | . . . Route ------- -11/Scrapyard -10/Materials -9/Materials History --------- Turn | Location | Event 6 | -11/Scrapyard | Discovered new exit (range 16) 363 | -11/Scrapyard | Entered Materials 364 | -10/Materials | Build established: Mutant 555 | -10/Materials | Discovered new exit (range 14) 603 | -10/Materials | Identified exit to Materials 636 | -10/Materials | Entered another Materials area 636 | -9/Materials | Evolved 2 slots: Utility x2 791 | -9/Materials | Core integrity fell below 50% 814 | -9/Materials | Core integrity fell below 20% 832 | -9/Materials | Destroyed by L-31 Rogue with Katana Last Messages --------------- U-05 Engineer builds a Wall. K-01 Serf cleans the Integration Channel. T-07 Excavator is excavating. U-05 Engineer lays Concrete. T-07 Excavator is excavating. U-05 Engineer lays Concrete. U-05 Engineer builds a Wall. T-07 Excavator is excavating. U-05 Engineer lays Concrete. T-07 Excavator is excavating. U-05 Engineer lays Concrete. Imp. Power Shielding destroyed. T-07 Excavator is excavating. U-05 Engineer lays Concrete. U-05 Engineer builds a Wall. T-07 Excavator is excavating. M-13 Machinist repairs L-31 Rogue. T-07 Excavator is excavating. U-05 Engineer lays Concrete. Lgt. Ion Engine destroyed. Map ----- +----------------------------------------------------+ | ?????????????????????????????????????????????????? | | ?????????????????????????????????????????????????? | | ?????????????????????????????????????????????????? | | ?????????????????????????????????????????????????? | | ?????????????????????????????????????????????????? | | ?????????????????????????????????????????????????? | | ?????????????????????????????????????????????????? | | ?????????????????????????????????????????????????? | | ?????????????????? ????#???????????????????????? | | ?????????????????# ????????????????????????????? | | ???????????????#?# ????????????????????????????? | | ?????????????????# ????????????????????????????? | | ??????????? ?????# ??????????????#?????????????? | | ????????????????## ????????????????????????????? | | ????????????????## ????????????????????????????? | | ?????????######### #???????????????????????????? | | ?????????? +???????????????????????????? | | ?????????? #???????????????????????????? | | ??????????? k #???????????????????????????? | | ??????????? k # ??????????#???????????????? | | ??????????? # ??????????????????????????? | | ????????????" " %%#######?????????????????????? | | ????????????"" """%r# m #????? ???????????????? | | ???????????""" """ Yu t#?????????????????????? | | ????????????"" """% #g l#?????????????????????# | | ????????????"" "" # @ #?????????????????????# | | ???????????""" """ ##########??????????????????# | | ???????????"" "" ########## ########## | | ???????????"" "" ### ###/################# | | ????????? " " ### ## | | ?????## T ### =/ ## | | ?????## ###! =/ ## | | ?????## ############ # ####### ### = ## | | ????????? ############ ############# ### ## | | ????????????????????## ########???## ### ## | | ????????????????????## ##?????????## #######+### | | ????????????????????## ##?????????##= | | ???????????????????### # ?????????##= | | ????????????????????## # ?????????##" | | ????????????????????## # ????????##T #### | | ?????????????????????? ???????????##" ^ #### | | ?????????????????????? ???????????## !!! ##?# | | ?????????????????????? ???????????## !!! ##?# | | ?????????????????????? ???????????## !!! ##?# | | ?????????????????????? ???????????## ##?# | | ??????????????????????????????????## ##?# | | ??????????????????????????????????##### ######?# | | ??????????????????????????????????##### ######?# | | ?????????????????????????????????????## ##?????? | | ????????????????????????????????????? ##?????? | +----------------------------------------------------+ Best States ------------- Heat Dissipation 28 Energy Generation 10 Energy Capacity 250 Matter Stores 300 Matter Capacity 300 Sight Range 16 Robot Scan Range 14 Terrain Scan Range 16 Terrain Scan Density 10 Power Shielding 66 Evasion (%) 50 Item Schematics ----------------- None Robot Schematics ------------------ None Fabricated ------------ Nothing Repaired ---------- Nothing Studied --------- None Alien Tech Used ----------------- None Achievements -------------- Bumper Bots Organ Harvest True Hacker Challenges ------------ None Game ------ Seed SupersonicTeleporterScanner Manual? 0 Play Time 00:15:19 Cumulative 22.1 hours Start 2025.10.22 @ 20:52:23 End 2025.10.23 @ 18:11:03 Sessions 4 Manual Loads 0 Difficulty Rogue Special Mode None Game No. 28 Rogue 9 Adventurer 0 Explorer 19 Win Type - Total 0 Types 0/0/0/0/0/0/0/0/0/0 Lore% 17 Gallery% 22 Achievement% 15 Wizard Run 0 Options --------- Layout 0 ASCII 0 Keyboard 0 Movement Mouse Keybinds 0 Fullscreen 2 Font 18/SmallcapsGlow Map View 76x50 Zoom Use 1% Tactical HUD 0 Map Filters NONE Filters NONE Steam 1 RUN: 248cab5a-cfea-4630-b773-3d5f48c9ccdf